Workbook

Sheet نامه به مجمع
A2: بسمه تعالی
A3: مجمع عمومی صاحبان سهام
A4: با احترام
A5: به پیوست صورتهای مالی شرکت تعاونی اعتبار کارکنان عمران وبهسازی شهری ایران برای سال مالی منتهی به 29 اسفند 1398 متشکل از اجزاء زیر جهت استحضار ایفاد می گردد:
A6: شرح | C6: شماره صفحه
A7: ترازنامه | C7: 1
A8: صورت حساب سود وزیان | C8: 2
A9: تاریخچه فعالیت شرکت | C9: 3
A10: یادداشتهای مربوط به اقلام مندرج در صورتهای مالی | C10: 4الی12
A12: صورتهای مالی بر اساس استانداردهای حسابداری تهیه شده ودر تاریخ 1399/03/31 به تایید هیات مدیره رسیده است .
A14: اعضاء هیات مدیره | B14: سمت | C14: امضاء
A15: محمد آئینی | B15: رئیس هیات مدیره
A16: افشین میرزابابائی | B16: عضو هیات مدیره
A17: محمد رضا مهماندوست | B17: عضو هیات مدیره
A18: سید هاشم جزایری | B18: مدیر عامل

Sheet تراز نامه
A1: شرکت تعاونی اعتبار کارکنان عمران وبهسازی شهری
A2: ترازنامه
A3: به تاریخ 1398/12/29
A4: دارائیها | C4: 1398/12/29 | E4: 1397/12/29 | F4: بدهیها وحقوق صاحبان سهام | H4: 1398/12/29 | J4: 1397/12/29
B5: یادداشت | C5: ریال | E5: ریال | G5: یادداشت | H5: ریال | J5: ریال
A6: دارائیهای جاری | F6: بدهیهای جاری
A7: موجودی نقد | B7: 5 | C7: ='5-6'!D16 -> 2,178,004,144 | E7: 993,242,135 | F7: حسابهای پرداختنی | G7: 8 | H7: ='10-11-12'!D10 -> 959,723,575 | J7: 959,723,575
A8: حسابها واسناد دریافتنی | B8: 6 | C8: ='5-6'!D25 -> 20,833,901,908 | E8: 19,988,141,438 | F8: سایر حسابها واسناد پرداختنی | G8: 9 | H8: ='10-11-12'!D22 -> 3,178,610,042 | J8: 3,200,705,492
A9: سرمایه گذاریها | B9: 7 | C9: ='7'!D11 -> 14,026,924,660 | E9: 14,526,924,660 | F9: سپرده اشخاص | G9: 10 | H9: ='10-11-12'!D36 -> 915,541,140 | J9: 1,594,663,993
C10: 0 | F10: مالیات پرداختنی | G10: 12 | H10: ='14'!K15 -> 1,481,217,437 | J10: 1,481,217,437
A11: جمع دارائیهای جاری | C11: =SUM(C7:C10) -> 37,038,830,712 | E11: =SUM(E7:E10) -> 35,508,308,233 | F11: جمع بدهیهای جاری | H11: =SUM(H7:H10) -> 6,535,092,194 | J11: =SUM(J7:J10) -> 7,236,310,497
A12: دارائیهای ثابت | F12: بدهیهای غیر جاری
A13: اثاثه ومنصوبات | B13: 0 | C13: 0 | E13: 0 | F13: بستانکاران اعضاء | G13: 11 | H13: ='10-11-12'!D45 -> 23,557,659,022 | J13: 23,854,168,751
A14: جمع دارائیهای ثابت | C14: =C13 -> 0 | E14: =E13 -> 0 | F14: جمع بدهیهای غیر جاری | H14: =H13 -> 23,557,659,022 | J14: =J13 -> 23,854,168,751
F15: جمع بدهیها | H15: =H11+H14 -> 30,092,751,216 | J15: =J11+J14 -> 31,090,479,248
F16: حقوق صاحبان سهام
F17: سرمایه | G17: 13 | H17: ='13-14-15'!D10 -> 5,000,000,000 | J17: 4,447,073,047
F18: اندوخته قانونی | G18: 14 | H18: =J18+سودوزیان!E21 -> 312,361,236 | J18: 213,595,058
F19: اندوخته احتیاطی | G19: 15 | H19: =J19+سودوزیان!E22 -> 68,757,454 | J19: 49,004,218
F20: سود (زیان )انباشته | G20: 18 | H20: =سودوزیان!E26 -> 1,564,960,807 | J20: 291,843,338-
F21: جمع حقوق صاحبان سهام | H21: =SUM(H17:H20) -> 6,946,079,496 | J21: =SUM(J17:J20) -> 4,417,828,985
A22: جمع دارائیها | C22: =C11+C14 -> 37,038,830,712 | E22: =E11+E14 -> 35,508,308,233 | F22: جمع بدهیها وحقوق صاحبان سهام | H22: =H15+H21 -> 37,038,830,712 | J22: =J15+J21 -> 35,508,308,233
A25: 1
F28: =H22-C22 -> 0

Sheet سودوزیان
A1: شرکت تعاونی اعتبار کارکنان عمران وبهسازی شهری
A2: صورت سود وزیان
A3: سال مالی منتهی به 1398/12/29
A7: شرح | C7: یادداشت | E7: 1398/12/29 | G7: 1397/12/29
E8: ریال | G8: ریال
A9: درآمد حاصل از کارمزد تسهیلات اعطایی وخدمات مالی | C9: 16 | E9: ='16-17-18'!D10 -> 505,456,000 | G9: 416,933,334
A10: درآمد حاصل از سپرده گذاری در بانکها | C10: 16 | E10: ='16-17-18'!D11 -> 2,325,800,192 | G10: 253,312,122
A11: جمع در آمدها | E11: =SUM(E9:E10) -> 2,831,256,192 | G11: =SUM(G9:G10) -> 670,245,456
A12: کسر می شود :
A13: هزینه های اداری وتشکیلاتی | C13: 17 | E13: ='16-17-18'!D27 -> 855,932,634 | G13: 633,899,277
A14: سود (زیان ) خالص | E14: =E11-E13 -> 1,975,323,558 | G14: =G11-G13 -> 36,346,179
A16: صورت گردش سود وزیان انباشته
A17: سود (زیان ) خالص | E17: =E14 -> 1,975,323,558 | G17: 36,346,179
A18: سودوزیان انباشته در ابتدای سال مالی | E18: =G26 -> 291,843,338- | G18: 328,189,517-
A19: زیان انباشته | E19: =SUM(E17:E18) -> 1,683,480,220 | G19: =SUM(G17:G18) -> 291,843,338-
A20: کسر می شود :
A21: 5%اندوخته قانونی | C21: 14 | E21: =E14*5% -> 98,766,178 | G21: 0
A22: 1%اندوخته احتیاطی | C22: 15 | E22: =E14*1% -> 19,753,236 | G22: 0
A23: سود سهام مصوب | C23: 0 | E23: 0 | G23: 0
A24: جمع | E24: =E19-E21-E22 -> 1,564,960,807 | G24: =G19-G21-G22 -> 291,843,338-
A25: سود قابل تقسیم | E25: 0 | G25: 0
A26: سود(زیان ) انباشته | C26: 18 | E26: =E24 -> 1,564,960,807 | G26: =G24 -> 291,843,338-
C41: 2

Sheet تاریخچه
A1: شرکت تعاونی اعتبار کارکنان عمران وبهسازی شهری
A2: یادداشتهای توضیحی صورتهای مالی
A3: سال مالی منتهی به 1398/12/29
A4: -1 | B4: -1 | C4: تاریخچه فعالیت شرکت :
B5: 1.1 | C5: اساسنامه این شرکت در مجمع عمومی عادی مورخ 81/09/30 تصویب ودر تاریخ 81/12/25 تحت شماره 200550 در اداره ثبت شرکتها ی تهران به ثبت رسیده است . شرکت فعالیت خود را با 37 عضو شروع کرده و در تاریخ صورتهای مالی مورد گزارش به 140 عضو رسیده است .
C6: به استناد صورت جلسه مجمع عمومی فوق العاده مورخ 1394/04/14 وبه موجب مجوز شماره نامه 15942 مورخ 1394/10/14 اداره کل تعاون استان تهران ،وبا توجه به نامه صادره از سوی اداره مجوزهای بانکی بانک مرکزی به شماره 94/280236 مورخ 94/10/01 اساسنامه جدید تعاونی مشتمل بر 57 ماده و34 تبصره جایگزین اساسنامه قبلی گردید.
A7: 1ر1 | B7: 1.2 | C7: فعالیت اصلی شرکت :
C8: فعالیت اصلی شرکت طبق ماده 2 اساسنامه به شرح زیر می باشد :
C9: الف- افتتاح انواع حساب سپرده های مختلف وپرداخت وام وتسهیلا ت اعتباری با دریافت کارمزد در چارچوب مقررات موضوعه
C10: ب-اخذ وام قرض الحسنه وتسهیلات اعتباری از بانک ها وموسسات اعتباری مجاز
C11: ج- اخذ کمک وهدایای نقدی وغیر نقدی از دولت ،اشخاص حقیقی ویا حقوقی
C12: ح-تودیع وجوه به حساب سپرده بلند مدت وکوتاه مدت نزد بانکها وموسسات اعتباری مجاز
C13: خ- انجام سایر خدمات اعتباری برای اعضا در حدود امکانات ودر چارچوب مقررات
C14: د- خرید سهام اتحادیه تعاونی اعتبار مربوطه وخرید اوراق مشارکت دولتی ویا تضمین شده توسط دولت در چارچوب مدیریت نقدینگی شرکت
A16: 2ر1 | B16: 1.3 | C16: وضعیت اشتغال :
C17: تعداد کارکنان پاره وقت طی دوره مالی 2 نفر بوده است .
A19: -2 | B19: -2 | C19: مبنای تهیه صورتهای مالی :
A20: 2ر2- | B20: 2.1 | C20: صورتهای مالی اساسا بر مبنای بهای تمام شده تاریخی تهیه شده است .
B21: 2.2 | C21: سال مالی شرکت پایان اسفند ماه هر سال می باشد.
A23: -4 | C23: خلاصه اهم رویه های حسابداری :
B24: -3 | C24: سرمایه گذاریها :
B25: 3.1 | C25: سرمایه گذاریهای کوتاه مدت به اقل بهای تمام شده وخالص ارزش روز هریک از سرمایه گذاریها ارزشیابی می شود .
B28: -4 | C28: دارائیهای ثابت مشهود :
C29: دارائیهای ثابت مشهود بر مبنای بهای تمام شده در حسابها ثبت می شود. مخارج بهسازی وتعمیرات اساسی که باعث افزایش قابل ملاحظه در ظرفیت یا عمر مفید دارائیهای ثابت یا بهبود اساسی در کیفیت بازدهی آنها می گردد به عنوان مخارج سر مایه ای محسوب وطی عمر مفید باقیمانده دارائیهای مربوط مستهلک می شود .هزینه های نگهداری وتعمیرات جزئی به عنوان هزینه های جاری تلقی وبه سود وزیان دوره منظور می گردد. بادر نظر گرفتن آیین نامه اجرائی دارائیهای استهلاک پذیر موضوع ماده 149 قانون مالیاتهای مستقیم اصلاحی مورخ 1394/04/31وبراساس نرخ وروش زیر محاسبه می شود :
C30: دارایی نرخ استهلاک روش
C31: اثاثه ومنصوبات 5ساله خط مستقیم
C36: 3

Sheet 5-6
A1: شرکت تعاونی اعتبار کارکنان عمران وبهسازی شهری
A2: یادداشتهای توضیحی صورتهای مالی
A3: سال مالی منتهی به 1398/12/29
A6: -5 | B6: موجودی نقد:
B7: موجودی نقد شامل موجودی ریالی بانکها جمعا به مبلغ 2.178.004.144 ریال به شرح زیر است
D9: 1398/12/29 | F9: 1397/12/29
D10: ریال | F10: ریال
B11: موجودی نزد صندوق | D11: 11,214,368 | F11: 20,544,673
B12: حسابجاری متمرکز نزد بانک مسکن | D12: =2449786060-510000000 -> 1,939,786,060 | F12: 767,094,744
B13: بانک مسکن ( حساب قرض الحسنه ) | D13: 100,000 | F13: 100,000
B14: بانک دی | D14: 1,430,291 | F14: 1,602,291
B15: بانک اقتصاد نوین | D15: 225,473,425 | F15: 203,900,427
D16: =SUM(D11:D15) -> 2,178,004,144 | F16: =SUM(F11:F15) -> 993,242,135
A18: -6 | B18: حسابها واسناد دریافتنی :
B19: حسابها واسناد دریافتنی از اقلام زیر تشکیل شده است .
D20: 1398/12/29 | F20: 1397/12/29
D21: ریال | F21: ریال
B22: تسهیلات اعطائی به اعضاء | C22: 6.1 | D22: =D36 -> 16,057,074,296 | F22: 9,134,416,412
B23: شرکت باز آفرینی شهری | C23: 6.2 | D23: 3,415,595,840 | F23: 9,468,089,387
B24: سایر حسابهای دریافتنی | C24: 6.3 | D24: =D45 -> 1,361,231,772 | F24: 1,385,635,639
D25: =SUM(D22:D24) -> 20,833,901,908 | F25: =SUM(F22:F24) -> 19,988,141,438
A27: 6.1 | B27: تسهیلات اعطائی به اعضاء شامل مانده انواع وامها به شرح زیر می باشد .
B28: نوع وام | D28: مانده تسهیلات اعطائی در سال 98 | F28: مانده تسهیلات اعطائی در سال 97
D29: ریال | F29: ریال
B30: کمک ودیعه مسکن | D30: 6,878,828,383 | F30: 7,443,779,785
B31: وام ضروری | D31: 308,075,052 | F31: 253,909,155
B32: وام خودرو | D32: 1,038,597,382 | F32: 1,024,060,799
B33: وام کوتاه مدت | D33: 756,703,520 | F33: 367,933,335
B34: وام کامپیوتر وکالاهای اساسی | D34: =57933338+7016936621 -> 7,074,869,959 | F34: 44,733,338
D36: =SUM(D30:D35) -> 16,057,074,296 | F36: =SUM(F30:F35) -> 9,134,416,412
A38: 6.2 | B38: بدهی شرکت باز آفرینی شهری مربوط به آن بخش از مطالبات تعاونی از بابت سپرده های ماهیانه ومطالبات اعضاء می باشد که به حساب تعاونی واریز نشده است.
A39: 6.3 | B39: سایر حسابها ی دریافتنی به شرح زیر می باشد : | D39: 1398/12/29 | F39: 1397/12/29
D40: ریال | F40: ریال
B41: شرکت عمران ومسکن سازان منطقه شرق | C41: 6.3.1 | D41: 346,473,445 | F41: 346,473,445
B42: تعاونی اتحاد هشتم خاوران (ثامن) | C42: 6.3.1 | D42: 461,406,518 | F42: 461,406,518
B43: جواد ابراهیم پورآذر | C43: 6.3.2 | D43: 225,000,000 | F43: 225,000,000
B44: سایر | D44: 328,351,809 | F44: 352,744,676
D45: =SUM(D41:D44) -> 1,361,231,772 | F45: =SUM(F41:F44) -> 1,385,624,639
A46: 6.3.1 | B46: بدهی شرکت عمران ومسکن سازان منطقه شرق وتعاونی اتحاد هشتم خاوران (ثامن )از بابت واگذاری دو واحد تجاری از پروژه سارا وخروج عضویت از تعاونی اعتبار می باشد . همچنین به استناد رای هیات حل اختلاف مالیاتی مورخ 1395/02/28وبا توجه به مبزان مالیات مورد مطالبه به میزان قدرالسهم ارزش واحدهای واگذار شده به دو شرکت ، به ترتیب مبالغ 284.584.695 و 257.044.241 ریال به حساب بدهی آنان منظور گردید. ومابقی بابت تتمه بدهی واحدهای واگذار شده به دو شرکت مذکور می باشد .
B47: طی قرارداد مورخ 97/05/21 ووکاتنامه شماره 644400 به آقای جواد ابراهیم پور آذر وکالت داده شد تا با ارائه دادخواست به دیوان عدالت اداری بدهی مالیاتی موضوع رای شماره 1542 مورخ 97/01/28 هیات حل اختلاف مالیاتی را ابطال نماید.تا صدور رای قطعی به نفع تعاونی ، حق الزحمه پرداخت شده قطعی نخواهد بود.
A48: 6.3.2
C50: 4

Sheet 7
A1: شرکت تعاونی اعتبار کارکنان عمران وبهسازی شهری
A2: یادداشتهای توضیحی صورتهای مالی
A3: سال مالی منتهی به 1398/12/29
A6: -7 | B6: سرمایه گذاریها :
D7: 1398/12/29 | F7: 1397/12/29
D8: ریال | F8: ریال
B9: سپرده گذاری در بانکها | C9: 7.1 | D9: =D21 -> 13,909,000,000 | F9: 14,409,000,000
B10: سرمایه گذاری کوتاه مدت | C10: 7.2 | D10: 117,924,660 | F10: 117,924,660
D11: =SUM(D9:D10) -> 14,026,924,660 | F11: =SUM(F9:F10) -> 14,526,924,660
A15: 7.1 | B15: سپرده گذاری در بانکها | D15: 1398/12/29 | F15: 1397/12/29
D16: ریال | F16: ریال
B17: سپرده سرمایه گذاری بلند مدت نزد بانک مسکن به نرخ 15% | C17: 7.1.1 | D17: 1,119,000,000 | F17: 1,119,000,000
B18: سپرده سرمایه گذاری بلند مدت نزد بانک مسکن به نرخ 15% | C18: 7.1.2 | D18: 280,000,000 | F18: 280,000,000
B19: سپرده سرمایه گذاری بلند مدت نزد بانک مسکن - اوراق | C19: 7.1.3 | D19: 510,000,000 | F19: 510,000,000
B20: سپرده سرمایه گذاری بلند مدت نزد بانک مسکن به نرخ 18% | D20: 12,000,000,000 | F20: 12,500,000,000
D21: =SUM(D17:D20) -> 13,909,000,000 | F21: =SUM(F17:F20) -> 14,409,000,000
A23: 7.1.1 | B23: مبلغ 1.100 میلیون ریال از آن به عنوان وثیقه ضمانتنامه بانکی جهت اداره کل امور مالیاتی شمال تهران دررابطه با موضوع رسیدگی به پرونده مالیاتی عملکرد سال 1392 قرار گرفته است .
A24: 7.1.2 | B24: مبلغ 179.339.181 ریال آن به عنوان وثیقه ضمانتنامه بانکی جهت اداره کل امور مالیاتی شمال تهران دررابطه با موضوع رسیدگی به پرونده مالیاتی عملکرد سال 1392 قرار گرفته است .
A25: 7.1.3 | B25: مبلغ 350میلیون ریال آن به عنوان وثیقه ضمانتنامه بانکی جهت اداره کل امور مالیاتی شمال تهران دررابطه با موضوع رسیدگی به پرونده مالیاتی عملکرد سال 1392 قرار گرفته است .
A28: 7.2 | B28: سرمایه گذاری کوتاه مدت :
B29: مربوط به باقیمانده تعداد 51.995 سهم از سهام پروژه مجد به ارزش دفتری 117.924.660 ریال می باشد .
C41: 5

Sheet دارایی ثابت
A1: شرکت تعاونی اعتبار کارکنان عمران وبهسازی شهری
A2: یادداشتهای توضیحی صورتهای مالی
A3: سال مالی منتهی به 1398/12/29
A5: 9 | B5: دارائیهای ثابت :
C6: قیمت تمام شده | G6: استهلاک انباشته | J6: ارزش دفتری | K6: ارزش دفتری
B7: شرح دارایی | C7: مانده ابتدای دوره | D7: افزایش طی دوره | E7: کاهش طی دوره | F7: مانده در 98/12/29 | G7: استهلاک انباشته | H7: استهلاک دوره | I7: مانده در 98/12/29 | J7: 1398/12/29 | K7: 1397/12/29
B8: اثاثه ومنصوبات | C8: 0 | D8: 0 | E8: 0 | F8: =C8+D8-E8 -> 0 | G8: 0 | H8: 0 | I8: =G8+H8 -> 0 | J8: 0 | K8: 0
B9: جمع | C9: =SUM(C8) -> 0 | D9: =SUM(D8) -> 0 | E9: 0 | F9: 0 | G9: 0 | H9: 0 | I9: 0 | J9: 0 | K9: =SUM(K8) -> 0
A25: 6

Sheet 10-11-12
A1: شرکت تعاونی اعتبار کارکنان عمران وبهسازی شهری
A2: یادداشتهای توضیحی صورتهای مالی
A3: سال مالی منتهی به 1398/12/29
A5: 8 | B5: حسابها ی پرداختنی :
D6: 1398/12/29 | F6: 1397/12/29
D7: ریال | F7: ریال
B8: حسابها ی پرداختنی | C8: 8.1 | D8: 959,723,575 | F8: 959,723,575
D10: =D8 -> 959,723,575 | F10: =F8 -> 959,723,575
A12: 8.1 | B12: رقم مذکور بابت بدهی تعاونی به شرکت سرمایه گذاری سارا می باشد.
A15: 9 | B15: سایر حسابها واسناد پرداختنی :
B16: سایر حسابها واسناد پرداختنی از اقلام زیر تشکیل شده است :
D17: 1398/12/29 | F17: 1397/12/29
D18: ریال | F18: ریال
B19: بستانکاران | C19: 9.1 | D19: =D30 -> 2,801,972,222 | F19: 2,824,067,672
B20: ذخایر | D20: 376,637,820 | F20: 376,637,820
D22: =SUM(D19:D21) -> 3,178,610,042 | F22: =SUM(F19:F21) -> 3,200,705,492
A24: 9.1 | B24: بستانکاران از اقلام زیر تشکیل شده است
D25: 1398/12/29 | F25: 1397/12/29
D26: ریال | F26: ریال
B27: مطالبات شرکتهای مسکن سازان | D27: =1825921613+418346429 -> 2,244,268,042 | F27: =1825921613+418346429 -> 2,244,268,042
B28: سود سهام پرداختنی | D28: 471,505,520 | F28: 500,000,000
B29: سایر | D29: =59851990+26346670 -> 86,198,660 | F29: 79,799,630
D30: =SUM(D27:D29) -> 2,801,972,222 | F30: =SUM(F27:F29) -> 2,824,067,672
A32: 10 | B32: سپرده اشخاص : | D32: 1398/12/29 | F32: 1397/12/29
D33: ریال | F33: ریال
C34: 10.1 | D34: 915,541,140 | F34: 1,594,663,993
D36: =SUM(D34:D35) -> 915,541,140 | F36: =F34 -> 1,594,663,993
B38: رقم مذکور مربوط به مطالبات اشخاصی است که از عضویت در تعاونی خارج شده اند .
A39: 10.1
A41: 11 | B41: بستانکاران اعضاء:
D42: 1398/12/29 | F42: 1397/12/29
D43: ریال | F43: ریال
C44: 11.1 | D44: =8925363957+14632295065 -> 23,557,659,022 | F44: 23,854,168,751
D45: =SUM(D44) -> 23,557,659,022 | F45: =F44 -> 23,854,168,751
A47: 11.1 | B47: حساب مذکور مربوط به سپرده گذاری ها ومطالبات اعضاء است که بطور ماهیانه از حقوق کارکنان کسر وبه همراه سپرده سهم شرکت ، توسط شرکت بازآفرینی شهری ایران به حساب تعاونی اعتبار واریز میشود .
C50: 7

Sheet 14
G1: شرکت تعاونی اعتبار کارکنان عمران وبهسازی شهری
G2: یادداشتهای توضیحی صورتهای مالی
G3: سال مالی منتهی به 1398/12/29
G5: 12 | H5: مالیات پرداختنی :
H6: به استناد رای هیات حل اختلاف سازمان امور مالیاتی مورخ 1395/02/28 از بابت عملکرد سال مالی منتهی به اسفند 1392در خصوص ما به التفاوت تجدید ارزشیابی 5 واحد تجاری پروژه سارا ، سازمان امور مالیاتی مبلغ1.481.217.437 ریال مالیات مطالبه نموده است .در پی اعتراضات تعاونی به شورای عالی مالیاتی وهیات همعرض ، رای های صادره مالیات مورد مطالبه را تایید نموده است . نهایتا با استفاده از مجوز مجمع واستخدام وکیل ، مو ضوع برای رسیدگی دردیوان عدالت اداری در دستور کار قرار گرفت. طبق دادنامه شماره 2339 مورخ 97/06/03 دیوان ، دستور موقت مبنی بر توقیف عملیات اجرائی تا تعیین تکلیف قطعی شکایت صادر می شود. وطی دادنامه شماره 3904 مورخ 97/10/02 حکم به ورود شکایت ولزوم رسیدگی در هیات همعرض مالیاتی را صادر می نماید. علیرغم دادخواست امور مالیاتی به دیوان در خصوص تجدید نظر رای صادره ، دیوان عدالت اداری رای به رسیدگی مجدد در هیات حل اختلاف مالیاتی موضوع ماده 257 ق.م.م. را تایید می نماید . لیکن اداره کل امور مالیاتی شمال تهران بدون توجه به رای مذکور نسبت به صدور برگ مالیات قطعی عملکرد سال92 اقدام وابلاغ می نماید. لذا مراتب توسط تعاونی مورد اعتراض قرار میگیرد تا مراحل اداری پرونده طی شود.
H8: شماره واحد | I8: متراژ | J8: قیمت | K8: سهم از مالیات عملکرد | L8: خریدار
H10: 237 | I10: 13 | J10: 3,100,000,000 | K10: 284,584,695 | L10: مسکن سازان شرق
H11: 237/1 | I11: 13/2 | J11: 3,250,000,000 | K11: 298,354,922
H12: 256 | I12: 14/88 | J12: 3,665,000,000 | K12: 336,452,551
H13: 262 | I13: 13/75 | J13: 3,320,000,000 | K13: 304,781,028
I14: 15/3 | J14: 2,800,000,000 | K14: 257,044,241 | L14: اتحادیه هشتم خاوران (ثامن )
H15: جمع | J15: 16,135,000,000 | K15: =SUM(K10:K14) -> 1,481,217,437
H18: عطف به یادداشت 6.3 مالیات واحدهای واگذار شده به حساب بدهی خریداران منظور شده است .
H20: خلاصه وضعیت پرونده های مالیاتی تعاونی در صفحات بعد توضیح داده شده است .
G31: 8

Sheet 14 (2)
A1: آخرین وضعیت پرونده مالیاتی شرکت تعاونی اعتبار کارکنان عمران وبهسازی شهری
A2: سال عملکرد | B2: شرح مالیات | C2: ابرازی | D2: برگ تشخیص | E2: رای هیات بدوی | F2: رای هیات تجدیدنظر | G2: برگ قطعی | H2: شورایعالی مالیاتی | I2: مانده بدهی مالیاتی | J2: هیات همعرض | K2: توضیحات
A3: 1380 | B3: حقوق | D3: 0
B4: تکلیفی
B5: عملکرد
A7: 1381 | B7: حقوق
B8: تکلیفی
B9: عملکرد
A11: 1382 | B11: حقوق
B12: تکلیفی
B13: عملکرد
A15: 1383 | B15: حقوق
B16: تکلیفی
B17: عملکرد
A19: 1384 | B19: حقوق
B20: تکلیفی
B21: عملکرد
A23: 1385 | B23: حقوق | C23: 0 | D23: 8,190,000 | G23: 0 | I23: تسویه | K23: سال شروع رسیدگی مالیاتی
B24: تکلیفی | C24: 0 | I24: تسویه
B25: عملکرد | C25: 0 | D25: 5,156,000 | G25: 0 | I25: تسویه
A27: 1386 | B27: حقوق | C27: 0 | D27: 2,800,000 | G27: 2,800,000 | I27: تسویه
B28: تکلیفی | C28: 0 | I28: تسویه
B29: عملکرد | C29: 0 | D29: 6,247,536 | I29: تسویه
A31: 1387 | B31: حقوق | C31: 0 | D31: 2,548,523 | G31: 2,548,523 | I31: تسویه
B32: تکلیفی | C32: 0 | I32: تسویه
B33: عملکرد | C33: 0 | D33: 0 | I33: تسویه
A35: 1388 | B35: حقوق | C35: 0 | I35: تسویه
B36: تکلیفی | C36: 0 | G36: 941,675 | I36: تسویه
B37: عملکرد | C37: 0 | G37: 1,315,328 | I37: تسویه
A39: 1389 | B39: حقوق | C39: 0 | D39: 0 | I39: تسویه
B40: تکلیفی | C40: 0 | D40: 0 | I40: تسویه
B41: عملکرد | C41: 0 | D41: 0 | I41: تسویه
A43: 1390 | B43: حقوق | C43: 0 | D43: 15,240,000 | K43: ذیل برگه های تشخیص نوشته شده در مهلت مقرر اعتراض گردید لیکن هیچ نسخه ای از اعتراض در پرونده مربوطه موجود نیست واز طرف حوزه مالیاتی نیز هیچ برگه ای ابلاغ نشده است
B44: تکلیفی | C44: 0 | D44: 12,112,526
B45: عملکرد | C45: 0 | D45: 203,184,302
A47: 1391 | B47: حقوق | C47: 0 | D47: 0 | I47: تسویه
B48: تکلیفی | C48: 0 | D48: 4,826,564 | I48: تسویه
B49: عملکرد | C49: 0 | D49: 7,257,741 | I49: تسویه
A51: 1392 | B51: حقوق | C51: 0 | D51: 26,293,500 | E51: 26,293,500 | F51: 0 | I51: تسویه
B52: تکلیفی | C52: 0 | D52: 2,267,142 | E52: 1,478,571 | F52: 0 | I52: تسویه
A53: 1392 | B53: ماده 169 | D53: 12,572,002
B54: عملکرد | C54: 0 | D54: 1,481,217,437 | E54: 1,481,217,437 | F54: 1,481,217,437 | G54: 1,481,217,437 | H54: نقض رای های صادره بدلیل نقص رسیدگی | I54: 1,481,217,437 | J54: 1,481,217,437 | K54: ضمانتنامه بانکی به نفع دارایی ارائه شده است ----شکایت به دیوان عدالت اداری ارائه شد رای به تجدید رسیدگی در هیات حل اختلاف مالیاتی صادر شد
A56: 1393 | B56: حقوق | C56: 0 | D56: 0 | K56: درتاریخ 95/08/04 هیات بدوی تشکیل ودفاعیات ارائه شده است تاکنون رایی ابلاغ نشده است
B57: تکلیفی | C57: 0 | D57: 0
B58: عملکرد | C58: 0 | D58: 1,100,000,000
A60: 1394 | B60: حقوق | C60: 0 | D60: 0
B61: تکلیفی | C61: 0 | D61: 4,271,744 | E61: 2,785,920 | F61: 2,785,920 | I61: تسویه
A62: 1394 | B62: عملکرد | C62: 0 | D62: 35,435,555 | E62: 35,435,555 | F62: 35,435,555 | I62: =F62 -> 35,435,555 | K62: هیات بدوی رای به تایید برگ تشخیص داد .لذا جهت تجدید رسیدگی اعتراض به امور مالیاتی ارائه شد.منتظر دعوت به هیات حل اختلاف مالیاتی هستیم
A64: 1395 | B64: حقوق | C64: 0 | D64: 15,863,984 | K64: پیرو اعتراض به مالیات مورد تشخیص جلسه هیات حل اختلاف بدوی درتاریخ 99/04/07 تشکیل شد دفاعیات بطور شفاهی وکتبی ارائه شد منتظر رای هیات هستیم.
B65: ماده 169 | D65: 20,042,223
B66: عملکرد | C66: 0 | D66: 81,613,372
A68: 1396 | B68: حقوق | C68: 0 | D68: 9,015,802 | K68: اعتراض جهت تجدید رسیدگی به امورمالیاتی ارائه شد . منتظر دعوت به هیات حل اختلاف مالیاتی هستیم
B69: ماده 169 | D69: 17,284,356
B70: عملکرد | C70: 0 | D70: 31,927,708
A72: 1397 | B72: حقوق | C72: 0 | K72: رسیدگی نشده
B73: ماده 169
B74: عملکرد | C74: 0

Sheet 13-14-15
A1: شرکت تعاونی اعتبار کارکنان عمران وبهسازی شهری
A2: یادداشتهای توضیحی صورتهای مالی
A3: سال مالی منتهی به 1398/12/29
A5: 13 | B5: سرمایه :
D6: 1398/12/29 | F6: 1397/12/29
D7: ریال | F7: ریال
B8: 16667سهم 300000 ریالی | C8: 13.1 | D8: 5,000,000,000 | F8: 5,000,000,000
B9: کاهش سرمایه | D9: 0 | F9: 552,926,953-
D10: =D8+D9 -> 5,000,000,000 | F10: =SUM(F8:F9) -> 4,447,073,047
B12: سرمایه اولیه شرکت تعاونی به مبلغ 11/100/000 ریال شامل 37سهم 300/000ریالی بوده که به استناد مجامع عمومی عادی سالیانه مورخ 86/02/31-89/03/22و90/04/20 به ترتیب به مبالغ 1/000/000/000ریال -3/000/000/000ریال و5/000/000/000ریال افزایش یافته است . تعداداعضای تعاونی در پایان سال 1398 صدوچهل عضو می باشد.
A13: 13.1
A20: 14 | B20: اندوخته قانونی :
B21: براساس بند1 از ماده 45 اساسنامه مصوب مجمع عمومی فوق العاده مورخ 1394/04/14 شرکت می تواند حداقل 5%از سود خالص به عنوان اندوخته قانونی در حسابها منظور نماید .
D23: 1398/12/29 | F23: 1397/12/29
D24: ریال | F24: ریال
D25: 312,361,236 | F25: 213,595,058
D27: =D25 -> 312,361,236 | F27: =F25 -> 213,595,058
A30: 15 | B30: اندوخته احتیاطی :
B31: براساس بند 2 از ماده 45 اساسنامه مصوب مجمع عمومی فوق العاده مورخ 1394/04/14 ومصوبه هیات مدیره شرکت می تواند حداکثر تا 5% سود خالص به عنوان اندوخته احتیاطی به حساب منظور نماید .
D33: 1398/12/29 | F33: 1397/12/29
D34: ریال | F34: ریال
D35: 68,757,454 | F35: 49,004,218
D37: =D35 -> 68,757,454 | F37: =F35 -> 49,004,218
C45: 11

Sheet 16-17-18
A1: شرکت تعاونی اعتبار کارکنان عمران وبهسازی شهری
A2: یادداشتهای توضیحی صورتهای مالی
A3: سال مالی منتهی به 1398/12/29
A7: 16 | B7: درآمدها :
D8: 1398/12/29 | F8: 1397/12/29
D9: ریال | F9: ریال
B10: درآمد حاصل از کارمزد تسهیلات اعطائی | D10: =191216000+314240000 -> 505,456,000 | F10: 416,933,334
B11: درآمد حاصل از سپرده گذاری در بانکها | D11: 2,325,800,192 | F11: 253,312,122
D12: =SUM(D10:D11) -> 2,831,256,192 | F12: =SUM(F10:F11) -> 670,245,456
A17: 17 | B17: هزینه های اداری وتشکیلاتی :
D19: 1398/12/29 | F19: 1397/12/29
D20: ریال | F20: ریال
B21: حق الزحمه خدمات مالی واداری | D21: 389,472,696 | F21: 219,200,000
B22: حق الجلسات هیات مدیره | D22: 432,000,000 | F22: 219,207,600
B23: آگهی وتبلیغات | D23: 22,830,305 | F23: 25,160,000
B24: حق الزحمه کارشناسی | D24: 0 | F24: 165,011,800
B25: سایر | D25: 11,629,633 | F25: 5,319,877
D27: =SUM(D21:D26) -> 855,932,634 | F27: =SUM(F21:F26) -> 633,899,277
C37: 12

Sheet عملکرد
A1: بسمه تعالی
A2: گزارش عملکرد هیات مدیره به مجمع عمومی محترم صاحبان سهام تعاونی اعتبار کارکنان عمران وبهسازی شهری

Sheet آمار وامها
A1: تسهیلات اعطایی به اعضاء
A3: نوع تسهیلات | B3: 1395/12/30 | D3: 1396/12/29 | F3: 1397/12/29 | H3: 1398/12/29
B4: تعداد | C4: مبلغ | D4: تعداد | E4: مبلغ | F4: تعداد | G4: مبلغ | H4: تعداد | I4: مبلغ
A5: ودیعه مسکن | B5: 21 | C5: 2,412,000,000 | D5: 23 | E5: 2,720,000,000 | F5: 42 | G5: 4,888,533,343 | H5: 28 | I5: 3,577,600,000
A6: وام ضروری | B6: 40 | C6: 800,000,000 | D6: 11 | E6: 220,000,000 | F6: 20 | G6: 400,000,000 | H6: 21 | I6: 420,000,000
A7: وام خودرو | B7: 34 | C7: 1,185,000,000 | D7: 3 | E7: 145,000,000 | F7: 16 | G7: 655,000,000 | H7: 19 | I7: 700,000,000
A8: وام کوتاه مدت | B8: 2 | C8: 100,000,000 | D8: 0 | E8: 0 | F8: 0 | G8: 0 | H8: 3 | I8: 750,000,000
A9: وام کامپیوتر | B9: 7 | C9: 84,000,000 | D9: 3 | E9: 36,000,000 | F9: 5 | G9: 60,000,000 | H9: 8 | I9: 96,000,000
A10: وام مصوبه هیات مدیره مورخ 98/07/09 | H10: 103 | I10: 7,580,800,000
A11: جمع | B11: =SUM(B5:B9) -> 104 | C11: =SUM(C5:C9) -> 4,581,000,000 | D11: =SUM(D5:D9) -> 40 | E11: =SUM(E5:E9) -> 3,121,000,000 | F11: =SUM(F5:F9) -> 83 | G11: 6,003,533,343 | H11: =SUM(H5:H10) -> 182 | I11: =SUM(I5:I10) -> 13,124,400,000
A16: تعداد سهامداران در پایان دوره مالی منتهی به 1398/12/29
B17: نفر
A18: تعداد سهامداران در ابتدای دوره مالی | B18: 168
A19: اصلاح تعداد اعضاء براساس کارکنان شاغل در شرکت مادر | B19: -28
A20: تعداد سهامداران در پایان دوره مالی | B20: =B18+B19 -> 140

Sheet درآمد هزینه
A1: جدول مقایسه عملکرد با بودجه مصوب دوره مالی منتهی به اسفند ماه 1398
A3: شرح | B3: پیش بینی سال 96 | C3: عملکرد سال 96 | D3: پیش بینی سال 97 | E3: عملکرد سال 97 | F3: پیش بینی سال 98 | G3: عملکرد سال 98 | H3: نسبت تحقق
A4: درآمدها :
A5: درآمد حاصل از تسهیلات اعطایی ( کارمزد ) | B5: 500,000,000 | C5: 395,833,334 | D5: 500,000,000 | E5: 416,933,334 | F5: 500,000,000 | G5: =سودوزیان!E9 -> 505,456,000 | H5: =G5/F5 -> 1.0
A6: درآمد حاصل از سپرده گذاری در بانکها | B6: 200,000,000 | C6: 312,820,386 | D6: 300,000,000 | E6: 253,312,122 | F6: 300,000,000 | G6: =سودوزیان!E10 -> 2,325,800,192 | H6: =G6/F6 -> 7.8
A7: درآمد حاصل از سرمایه گذاریها | B7: 2,000,000,000 | C7: 0 | G7: 0 | H7: 0.0
A8: جمع کل در آمد ها | B8: =SUM(B5:B7) -> 2,700,000,000 | C8: 708,653,720 | D8: =SUM(D5:D7) -> 800,000,000 | E8: 670,245,456 | F8: =SUM(F5:F7) -> 800,000,000 | G8: =SUM(G5:G7) -> 2,831,256,192 | H8: =G8:G9/F8 -> 3.5
A9: هزینه ها: | H9: 0.0
A10: هزینه های اداری وتشکیلاتی | B10: 700,000,000 | C10: 540,935,608 | D10: 700,000,000 | E10: 633,899,277 | F10: 700,000,000 | G10: =سودوزیان!E13 -> 855,932,634 | H10: =G10/F10 -> 1.2
A11: جمع هزینه ها | B11: =SUM(B10) -> 700,000,000 | C11: 540,935,608 | D11: 700,000,000 | E11: 633,899,277 | F11: 700,000,000 | G11: 855,932,634 | H11: =G11/F11 -> 1.2
A12: سود(زیان) خالص | B12: =B8-B11 -> 2,000,000,000 | C12: 167,718,112 | D12: =D8-D11 -> 100,000,000 | E12: 36,346,179 | F12: =F8-F11 -> 100,000,000 | G12: =G8-G11 -> 1,975,323,558 | H12: =G12/F12 -> 19.8
A15: جدول نسبت هزینه ها به در آمدها
B16: هزینه ها ( ریال ) | C16: درآمدها (ریال ) | D16: نسبت هزینه به در آمد
A17: سال مالی منتهی به اسفند 1391 | B17: 346,362,928 | C17: 677,559,980 | D17: =B17/C17 -> 0.51
A18: سال مالی منتهی به اسفند 1392 | B18: 633,601,598 | C18: 886,082,605 | D18: =B18/C18 -> 0.72
A19: سال مالی منتهی به اسفند 1393 | B19: 570,345,359 | C19: 1,712,542,945 | D19: 0.33
A20: سال مالی منتهی به اسفند 1394 | B20: 1,382,260,867 | C20: 399,738,077 | D20: 3.46
A21: سال مالی منتهی به اسفند 1395 | B21: 456,408,959 | C21: 652,906,978 | D21: 0.70
A22: سال مالی منتهی به اسفند 1396 | B22: 540,935,608 | C22: 708,653,720 | D22: 0.76
A23: سال مالی منتهی به اسفند 1397 | B23: 633,899,277 | C23: 670,245,456 | D23: 0.95
A24: سال مالی منتهی به اسفند 1398 | B24: 855,932,634 | C24: 2,831,256,192 | D24: 0.30
A25: جمع | B25: =SUM(B17:B24) -> 5,419,747,230 | C25: =SUM(C17:C24) -> 8,538,985,953 | D25: =SUM(D17:D24) -> 7.73

Sheet دارایی وبدهی
A1: جدول دارائیها وبدهیها
A2: سال مالی | B2: داراییها | C2: مطالبات اعضاء | D2: سایر بدهی ها | E2: حقوق صاحبان سهام
A3: 1391 | B3: 19,545,662,339 | C3: 6,004,039,763 | D3: 8,086,479,637 | E3: 5,455,142,939
A4: 1392 | B4: 25,471,012,983 | C4: 6,665,071,884 | D4: 13,406,493,739 | E4: 5,399,447,360
A5: 1393 | B5: 20,879,290,684 | C5: 3,242,882,443 | D5: 11,617,295,422 | E5: 6,019,112,819
A6: 1394 | B6: 16,782,603,992 | C6: 5,016,450,161 | D6: 7,195,960,203 | E6: 4,570,193,628
A7: 1395 | B7: 18,154,787,645 | C7: 5,884,504,559 | D7: 7,955,434,714 | E7: 4,314,848,372
A8: 1396 | B8: 21,082,168,528 | C8: 9,380,135,404 | D8: 7,314,765,365 | E8: 4,387,267,761
A9: 1397 | B9: 35,508,308,233 | C9: 23,854,168,751 | D9: 7,236,310,497 | E9: 4,417,828,985
A10: 1398 | B10: ='تراز نامه '!C22 -> 37,038,830,712 | C10: 23,557,659,022 | D10: 6,535,092,194 | E10: ='تراز نامه '!H21 -> 6,946,079,496
A11: تعداد جلسات برگزار شده
A12: تعداد جلسات هیات مدیره برگزار شده از ابتدای تاسیس تا پایان 1397 | E12: 267
A13: تعداد جلسات برگزار شده در سال 1398 | E13: 20

Sheet بودجه
A1: جدول پیش بینی بودجه 1399
B3: پیش بینی 1397 | C3: عملکرد 1397 | D3: پیش بینی سال 98 | E3: عملکرد سال 98 | F3: پیش بینی سال 99
A4: درآمدها:
A5: کارمزد تسهیلات اعطایی | B5: 500,000,000 | C5: 416,933,334 | D5: 500,000,000 | E5: ='درآمد هزینه'!G5 -> 505,456,000 | F5: 500,000,000
A6: درآمد حاصل از سپرده گذاری در بانکها | B6: 300,000,000 | C6: 253,312,122 | D6: 300,000,000 | E6: ='درآمد هزینه'!G6 -> 2,325,800,192 | F6: 1,000,000,000
A7: جمع درآمدها | B7: =SUM(B5:B6) -> 800,000,000 | C7: =SUM(C5:C6) -> 670,245,456 | D7: =SUM(D5:D6) -> 800,000,000 | E7: =SUM(E5:E6) -> 2,831,256,192 | F7: =SUM(F5:F6) -> 1,500,000,000
A8: هزینه ها :
A9: هزینه های اداری وتشکیلاتی | B9: 700,000,000 | C9: 633,899,277 | D9: 700,000,000 | E9: ='درآمد هزینه'!G10 -> 855,932,634 | F9: 1,000,000,000
A10: جمع هزینه ها | B10: 700,000,000 | C10: =SUM(C9) -> 633,899,277 | D10: =SUM(D9) -> 700,000,000 | E10: =SUM(E9) -> 855,932,634 | F10: =SUM(F9) -> 1,000,000,000
A11: سود (زیان ) | B11: =B7-B10 -> 100,000,000 | C11: =C7-C10 -> 36,346,179 | D11: =D7-D10 -> 100,000,000 | E11: =E7-E10 -> 1,975,323,558 | F11: =F7-F10 -> 500,000,000

Sheet امضا
A1: اعضاء هیات مدیره | B1: سمت | C1: امضاء
A2: محمد آئینی | B2: رئیس هیات مدیره
A3: افشین میرزابابائی | B3: عضو هیات مدیره
A4: محمد رضا مهماندوست | B4: عضو هیات مدیره
A5: سید هاشم جزایری | B5: مدیر عامل
